Workbook

Sheet Assumptions & Lists (hidden)
C2: days in yr | D2: 365,25
C3: daysinyr value | D3: =_xlfn.NUMBERVALUE(D2) -> 365.25
C4: Style | D4: American | E4: European
C5: inflation | D5: 0
C8: 0 | D8: Price
C9: 1 | D9: Delta
C10: 2 | D10: Gamma
C11: 3 | D11: Vega
C12: 4 | D12: theta
C13: 5 | D13: Rho
C15: Move | D15: Long | E15: Short
C16: Type | D16: Put | E16: Call | F16: Stock
C18: Strategy | D18: Call Spread | E18: Put Spread | F18: Butterfly | G18: Condor | H18: Strangle | I18: Straddle | J18: Call TimeSpread | K18: Put TimeSpread
C20: Greeks | D20: =TRUE -> TRUE | E20: =FALSE -> FALSE
C22: PlotGreek | D22: =FALSE -> FALSE | E22: Delta | F22: Gamma | G22: Vega | H22: Theta | I22: Rho
C24: TimeSpread | D24: =TRUE -> TRUE | E24: =FALSE -> FALSE
C26: HideContractAnalysis | D26: FALSE
C27: HideStratAnalysis | D27: FALSE
C29: Search | D29: T_1 | E29: T_2 | F29: All
C30: SearchEffective | D30: =IF(Trader!$K$3,'Assumptions & Lists'!$D$29:$F$29,'Assumptions & Lists'!$F$29) -> All

Sheet Risk Free & Inflation (hidden)
B3: Ticker | D3: RiskFree | E3: =MAX(0.5%,risk_free-inflation) -> 0.03009274702 | G3: 0.17 | K3: =FALSE -> FALSE | L3: =FALSE -> FALSE
B4: Price | C4: 737.74 | D4: Dividends | E4: 0 | J4: =inflation -> 0
B5: Maturity | C5: 2023-05-19T17:30:00 | D5: Style | E5: European
B6: TimetoT | C6: =(C5-NOW())/days_yr -> -1.549532807 | D6: stepsbinomial | E6: 25
Y7: -0.015 | Z7: Return: | AA7: =IFERROR((AA9/100)/Y10,1.5%) -> 0.03009274702
B8: Call | J8: Strike | K8: Put | U8: LongCall | V8: ShortPut | W8: ShortStock | X8: PayOff | Y8: Cashinterest | Z8: AdjustedPayOff | AA8: 100Contracts
B9: Rho(+1%rf) | C9: Theta | D9: Vega(iv+1%) | E9: Gamma | F9: Delta | G9: IVCall | H9: Ask | I9: Bid | K9: Bid | L9: Ask | M9: IVPut | N9: Delta | O9: Gamma | P9: Vega | Q9: Theta | R9: Rho | T9: Strike | U9: =MROUND(C4,5) -> 740 | V9: =U9 -> 740 | Y9: onCapital | Z9: min | AA9: =MIN(AA12:AA100001) -> 2238.5182
B10: 1.029070112 | C10: -0.0388804348 | D10: 0 | E10: 0 | F10: 1 | G10: 0.00048828125 | H10: 69.45 | I10: 68.45 | J10: 670 | K10: 5.9 | L10: 6.5 | M10: 0.2592773438 | N10: -0.1517287094 | O10: 0.003127749755 | P10: 0.6806634445 | Q10: -0.1498962347 | R10: -0.1800339165 | T10: Price | U10: =INDEX(H10:H1048576,MATCH(U$9,J10:J1048576,0)) -> 18.25 | V10: =INDEX(K10:K1048576,MATCH(V$9,J10:J1048576,0)) -> 24.4 | W10: =$C$4 -> 737.74 | Y10: =W10+V10-U10-2*U11/100 -> 743.873 | Z10: max | AA10: =MAX(AA12:AA1048576) -> 2238.5182
B11: 1.03674974 | C11: -0.03917058729 | D11: 0 | E11: 0 | F11: 1 | G11: 0.00048828125 | H11: 65.25 | I11: 64.15 | J11: 675 | K11: 6.5 | L11: 7.15 | M11: 0.2553710938 | N11: -0.1662466784 | O11: 0.003371583239 | P11: 0.7226724228 | Q11: -0.1564813631 | R11: -0.1973763467 | T11: TransactionCosts | U11: 0.85 | V11: 0.85 | W11: 0
B12: 1.005437684 | C12: -0.06163994994 | D12: 0.2231464624 | E12: 0.00220438347 | F12: 0.9651361278 | G12: 0.1206054688 | H12: 60.95 | I12: 59.95 | J12: 680 | K12: 7.25 | L12: 7.9 | M12: 0.2514648438 | N12: -0.1819714529 | O12: 0.003626461318 | P12: 0.7654136197 | Q12: -0.1628857662 | R12: -0.2161820358 | T12: 0 | U12: =MAX(0,T12-$U$9)-$U$10-$U$11/100 -> -18.2585 | V12: =$V$10-MAX(0,$V$9-T12)-$V$11/100 -> -715.6085 | W12: =$W$10-T12 -> 737.74 | X12: =SUM(U12:W12) -> 3.873 | Y12: =$Y$10*EXP($Y$7*$C$6)-$Y$10 -> 17.49233386 | Z12: =EXP(-$E$3*$C$6)*SUM(X12:Y12) -> 22.38518585 | AA12: =Z12*100 -> 2238.518585
B13: 0.9693763702 | C13: -0.0856176346 | D13: 0.4013640087 | E13: 0.003460557603 | F13: 0.9270850202 | G13: 0.1381835938 | H13: 56.85 | I13: 55.8 | J13: 685 | K13: 8.15 | L13: 8.7 | M13: 0.2485351562 | N13: -0.1997930253 | O13: 0.003885731429 | P13: 0.8105810933 | Q13: -0.1701382576 | R13: -0.2375977007 | T13: 1 | U13: =MAX(0,T13-$U$9)-$U$10-$U$11/100 -> -18.2585 | V13: =$V$10-MAX(0,$V$9-T13)-$V$11/100 -> -714.6085 | W13: =$W$10-T13 -> 736.74 | X13: =SUM(U13:W13) -> 3.873 | Y13: 17.49233386 | Z13: =EXP(-$E$3*$C$6)*SUM(X13:Y13) -> 22.38518585 | AA13: =Z13*100 -> 2238.518585
B14: 0.9379190828 | C14: -0.104751426 | D14: 0.5326116758 | E14: 0.004317558989 | F14: 0.8933945705 | G14: 0.1469726562 | H14: 52.7 | I14: 51.75 | J14: 690 | K14: 9.1 | L14: 9.6 | M14: 0.2456054688 | N14: -0.2189196473 | O14: 0.004149490593 | P14: 0.8553988789 | Q14: -0.1770188905 | R14: -0.2606242344 | T14: 2 | U14: -18.2585 | V14: -713.6085 | W14: 735.74 | X14: =SUM(U14:W14) -> 3.873 | Y14: 17.49233386 | Z14: 22.38518585 | AA14: 2238.518585
B15: 0.9061956566 | C15: -0.1217663468 | D15: 0.6457414459 | E15: 0.005033944429 | F15: 0.8597097572 | G15: 0.1528320312 | H15: 48.75 | I15: 47.75 | J15: 695 | K15: 10.2 | L15: 10.7 | M15: 0.2436523438 | N15: -0.2401450099 | O15: 0.004405424512 | P15: 0.9009365722 | Q15: -0.1845062049 | R15: -0.2863171491 | T15: 3 | U15: -18.2585 | V15: -712.6085 | W15: 734.74 | X15: 3.873 | Y15: 17.49233386 | Z15: 22.38518585 | AA15: 2238.518585
B16: 0.8755575147 | C16: -0.1355828549 | D16: 0.7411669846 | E16: 0.005669169931 | F16: 0.8270745686 | G16: 0.1557617188 | H16: 44.85 | I16: 43.85 | J16: 700 | K16: 11.15 | L16: 11.8 | M16: 0.2387695312 | N16: -0.2604748419 | O16: 0.004693488956 | P16: 0.940612112 | Q16: -0.1881595363 | R16: -0.3107092054 | T16: 4 | U16: -18.2585 | V16: -711.6085 | W16: 733.74 | X16: 3.873 | Y16: 17.49233386 | Z16: 22.38518585 | AA16: 2238.518585
B17: 0.8430431861 | C17: -0.147889445 | D17: 0.8279270283 | E17: 0.00625437088 | F17: 0.7929895057 | G17: 0.1577148438 | H17: 41.05 | I17: 40 | J17: 705 | K17: 12.5 | L17: 12.9 | M17: 0.2358398438 | N17: -0.2837123913 | O17: 0.004958103012 | P17: 0.9814509138 | Q17: -0.1932768792 | R17: -0.3388534852 | T17: 5 | U17: -18.2585 | V17: -710.6085 | W17: 732.74 | X17: 3.873 | Y17: 17.49233386 | Z17: 22.38518585 | AA17: 2238.518585
B18: 0.8073744361 | C18: -0.1594121104 | D18: 0.907864721 | E18: 0.006774347647 | F18: 0.756440485 | G18: 0.1596679688 | H18: 37.4 | I18: 36.5 | J18: 710 | K18: 13.8 | L18: 14.2 | M18: 0.2329101562 | N18: -0.3083203885 | O18: 0.005215943298 | P18: 1.019664144 | Q18: -0.1975659881 | R18: -0.3687318068 | T18: 6 | U18: -18.2585 | V18: -709.6085 | W18: 731.74 | X18: 3.873 | Y18: 17.49233386 | Z18: 22.38518585 | AA18: 2238.518585
B19: 0.7718387941 | C19: -0.1676953147 | D19: 0.9751632371 | E19: 0.007276518878 | F19: 0.7200463262 | G19: 0.1596679688 | H19: 33.85 | I19: 32.8 | J19: 715 | K19: 15.2 | L19: 15.6 | M19: 0.2290039062 | N19: -0.3337520823 | O19: 0.005483121623 | P19: 1.053917532 | Q19: -0.1998831133 | R19: -0.3995643944 | T19: 7 | U19: -18.2585 | V19: -708.6085 | W19: 730.74 | X19: 3.873 | Y19: 17.49233386 | Z19: 22.38518585 | AA19: 2238.518585
B20: 0.7334949919 | C20: -0.1746670403 | D20: 1.034031766 | E20: 0.007715786835 | F20: 0.6814794599 | G20: 0.1596679688 | H20: 30.45 | I20: 29.5 | J20: 720 | K20: 16.6 | L20: 17.35 | M20: 0.2260742188 | N20: -0.3611108107 | O20: 0.005718068191 | P20: 1.085016215 | Q20: -0.2021702339 | R20: -0.4329555877 | T20: 8 | U20: -18.2585 | V20: -707.6085 | W20: 729.74 | X20: 3.873 | Y20: 17.49233386 | Z20: 22.38518585 | AA20: 2238.518585
B21: 0.693732163 | C21: -0.1790770432 | D21: 1.081971707 | E21: 0.008123190462 | F21: 0.6418131591 | G21: 0.1586914062 | H21: 27.15 | I21: 26.3 | J21: 725 | K21: 18.45 | L21: 18.95 | M21: 0.2231445312 | N21: -0.3897285296 | O21: 0.005933737144 | P21: 1.111348867 | Q21: -0.203275567 | R21: -0.4679949083 | T21: 9 | U21: -18.2585 | V21: -706.6085 | W21: 728.74 | X21: 3.873 | Y21: 17.49233386 | Z21: 22.38518585 | AA21: 2238.518585
B22: 0.6515456549 | C22: -0.1817715309 | D22: 1.119040618 | E22: 0.008453516816 | F22: 0.6003315839 | G22: 0.1577148438 | H22: 24.05 | I22: 23.1 | J22: 730 | K22: 20.1 | L22: 20.85 | M22: 0.2202148438 | N22: -0.4195208314 | O22: 0.006125430138 | P22: 1.132189284 | Q22: -0.2030956735 | R22: -0.5045997268 | T22: 10 | U22: -18.2585 | V22: -705.6085 | W22: 727.74 | X22: 3.873 | Y22: 17.49233386 | Z22: 22.38518585 | AA22: 2238.518585
B23: 0.6073869274 | C23: -0.1825903299 | D23: 1.143782647 | E23: 0.008694258802 | F23: 0.5574497105 | G23: 0.1567382812 | H23: 21 | I23: 20.4 | J23: 735 | K23: 22.15 | L23: 23 | M23: 0.2172851562 | N23: -0.4503790699 | O23: 0.006288328465 | P23: 1.146835524 | Q23: -0.2015407167 | R23: -0.5426594231 | T23: 11 | U23: -18.2585 | V23: -704.6085 | W23: 726.74 | X23: 3.873 | Y23: 17.49233386 | Z23: 22.38518585 | AA23: 2238.518585
B24: 0.561908227 | C24: -0.1804319784 | D24: 1.155118796 | E24: 0.008891222556 | F24: 0.5135701348 | G24: 0.1547851562 | H24: 18.25 | I24: 17.65 | J24: 740 | K24: 24.4 | L24: 25.15 | M24: 0.2153320312 | N24: -0.4820975815 | O24: 0.006388456281 | P24: 1.154623584 | Q24: -0.1995388771 | R24: -0.5821449907 | T24: 12 | U24: -18.2585 | V24: -703.6085 | W24: 725.74 | X24: 3.873 | Y24: 17.49233386 | Z24: 22.38518585 | AA24: 2238.518585
B25: 0.5149078349 | C25: -0.1762228073 | D25: 1.152230402 | E25: 0.008982331625 | F25: 0.4687087481 | G25: 0.1528320312 | H25: 15.7 | I25: 15.1 | J25: 745 | K25: 26.8 | L25: 27.75 | M25: 0.2133789062 | N25: -0.5142923944 | O25: 0.006449288834 | P25: 1.155045711 | Q25: -0.1960659528 | R25: -0.6224393321 | T25: 13 | U25: -18.2585 | V25: -702.6085 | W25: 724.74 | X25: 3.873 | Y25: 17.49233386 | Z25: 22.38518585 | AA25: 2238.518585
B26: 0.4669817106 | C26: -0.1699665328 | D26: 1.134417481 | E26: 0.008957947717 | F26: 0.4234021238 | G26: 0.1508789062 | H26: 13.25 | I26: 12.85 | J26: 750 | K26: 29.45 | L26: 30.45 | M26: 0.2124023438 | N26: -0.5464017854 | O26: 0.006439198778 | P26: 1.147960636 | Q26: -0.1921514009 | R26: -0.6631006685 | T26: 14 | U26: -18.2585 | V26: -701.6085 | W26: 723.74 | X26: 3.873 | Y26: 17.49233386 | Z26: 22.38518585 | AA26: 2238.518585
B27: 0.4179368977 | C27: -0.1606444511 | D27: 1.100691453 | E27: 0.008863741016 | F27: 0.377311761 | G27: 0.1479492188 | H27: 11.1 | I27: 10.7 | J27: 755 | K27: 32.35 | L27: 33.3 | M27: 0.2124023438 | N27: -0.5777871545 | O27: 0.006359468612 | P27: 1.133746586 | Q27: -0.1878968682 | R27: -0.7033977707 | T27: 15 | U27: -18.2585 | V27: -700.6085 | W27: 722.74 | X27: 3.873 | Y27: 17.49233386 | Z27: 22.38518585 | AA27: 2238.518585
B28: 0.3698691153 | C28: -0.1505791018 | D28: 1.05253051 | E28: 0.008589296563 | F28: 0.3326415411 | G28: 0.1459960938 | H28: 9.2 | I28: 8.85 | J28: 760 | K28: 35.4 | L28: 36.4 | M28: 0.2114257812 | N28: -0.6091200622 | O28: 0.006267863525 | P28: 1.112277969 | Q28: -0.181289206 | R28: -0.7437093145 | T28: 16 | U28: -18.2585 | V28: -699.6085 | W28: 721.74 | X28: 3.873 | Y28: 17.49233386 | Z28: 22.38518585 | AA28: 2238.518585
B29: 0.3244123325 | C29: -0.1401789849 | D29: 0.9929662589 | E29: 0.008157782737 | F29: 0.2907919384 | G29: 0.1450195312 | H29: 7.75 | I29: 7.1 | J29: 765 | K29: 38.75 | L29: 39.7 | M29: 0.2124023438 | N29: -0.6383251166 | O29: 0.006089379493 | P29: 1.085595925 | Q29: -0.1756947314 | R29: -0.7822197076 | T29: 17 | U29: -18.2585 | V29: -698.6085 | W29: 720.74 | X29: 3.873 | Y29: 17.49233386 | Z29: 22.38518585 | AA29: 2238.518585
B30: 0.2796427733 | C30: -0.1274014214 | D30: 0.9201220699 | E30: 0.007662525275 | F30: 0.2497351502 | G30: 0.1430664062 | H30: 6.15 | I30: 5.8 | J30: 770 | K30: 42.3 | L30: 43.3 | M30: 0.2133789062 | N30: -0.6663034651 | O30: 0.005884245607 | P30: 1.053848389 | Q30: -0.1691291734 | R30: -0.8195621534 | T30: 18 | U30: -18.2585 | V30: -697.6085 | W30: 719.74 | X30: 3.873 | Y30: 17.49233386 | Z30: 22.38518585 | AA30: 2238.518585
B31: 0.2373697637 | C31: -0.1137828617 | D31: 0.8377678013 | E31: 0.007073264762 | F31: 0.2112064474 | G31: 0.1411132812 | H31: 5.1 | I31: 4.45 | J31: 775 | K31: 46.1 | L31: 47.05 | M31: 0.2163085938 | N31: -0.6910969532 | O31: 0.005620910859 | P31: 1.020507807 | Q31: -0.1640974321 | R31: -0.8538264766 | T31: 19 | U31: -18.2585 | V31: -696.6085 | W31: 718.74 | X31: 3.873 | Y31: 17.49233386 | Z31: 22.38518585 | AA31: 2238.518585
B32: 0.200075985 | C32: -0.1010643386 | D32: 0.7534448429 | E32: 0.006405656713 | F32: 0.1774635824 | G32: 0.1401367188 | H32: 4.1 | I32: 3.45 | J32: 780 | K32: 50.05 | L32: 50.95 | M32: 0.2192382812 | N32: -0.7142508952 | O32: 0.005351790204 | P32: 0.9848074574 | Q32: -0.1584930314 | R32: -0.8863940602 | T32: 20 | U32: -18.2585 | V32: -695.6085 | W32: 717.74 | X32: 3.873 | Y32: 17.49233386 | Z32: 22.38518585 | AA32: 2238.518585
B33: 0.1644422062 | C33: -0.08702862587 | D33: 0.6613331452 | E33: 0.005702009634 | F33: 0.1453302993 | G33: 0.1381835938 | H33: 3.25 | I33: 2.6 | J33: 785 | K33: 54.2 | L33: 55.05 | M33: 0.2231445312 | N33: -0.7347813693 | O33: 0.005068702076 | P33: 0.9493336449 | Q33: -0.153676487 | R33: -0.9162805325 | T33: 21 | U33: -18.2585 | V33: -694.6085 | W33: 716.74 | X33: 3.873 | Y33: 17.49233386 | Z33: 22.38518585 | AA33: 2238.518585
B34: 0.1345196844 | C34: -0.0746874045 | D34: 0.5744905841 | E34: 0.00498850817 | F34: 0.1185203877 | G34: 0.1372070312 | H34: 2.6 | I34: 1.95 | J34: 790 | K34: 56.5 | L34: 61.35 | M34: 0.2270507812 | N34: -0.7537171198 | O34: 0.004792486302 | P34: 0.9133132125 | Q34: -0.1485670919 | R34: -0.9444747296 | T34: 22 | U34: -18.2585 | V34: -693.6085 | W34: 715.74 | X34: 3.873 | Y34: 17.49233386 | Z34: 22.38518585 | AA34: 2238.518585
B35: 0.0877325991 | C35: -0.05342413771 | D35: 0.4178930535 | E35: 0.00365472784 | F35: 0.07687613452 | G35: 0.1362304688 | H35: 1.6 | I35: 1.1 | J35: 800 | K35: 65.15 | L35: 70.8 | M35: 0.2407226562 | N35: -0.780861292 | O35: 0.004236094595 | P35: 0.8558910327 | Q35: -0.1455598961 | R35: -0.9897644317 | T35: 23 | U35: -18.2585 | V35: -692.6085 | W35: 714.74 | X35: 3.873 | Y35: 17.49233386 | Z35: 22.38518585 | AA35: 2238.518585
B36: 0.05572095038 | C36: -0.03700573601 | D36: 0.2920861714 | E36: 0.002554470464 | F36: 0.04859751988 | G36: 0.1362304688 | H36: 0.98 | I36: 0.56 | J36: 810 | K36: 74.5 | L36: 80.15 | M36: 0.2543945312 | N36: -0.8030516157 | O36: 0.003763523578 | P36: 0.8035969353 | Q36: -0.1425266247 | R36: -1.029624542 | T36: 24 | U36: -18.2585 | V36: -691.6085 | W36: 713.74 | X36: 3.873 | Y36: 17.49233386 | Z36: 22.38518585 | AA36: 2238.518585
T37: 25 | U37: -18.2585 | V37: -690.6085 | W37: 712.74 | X37: 3.873 | Y37: 17.49233386 | Z37: 22.38518585 | AA37: 2238.518585
T38: 26 | U38: -18.2585 | V38: -689.6085 | W38: 711.74 | X38: 3.873 | Y38: 17.49233386 | Z38: 22.38518585 | AA38: 2238.518585
T39: 27 | U39: -18.2585 | V39: -688.6085 | W39: 710.74 | X39: 3.873 | Y39: 17.49233386 | Z39: 22.38518585 | AA39: 2238.518585
T40: 28 | U40: -18.2585 | V40: -687.6085 | W40: 709.74 | X40: 3.873 | Y40: 17.49233386 | Z40: 22.38518585 | AA40: 2238.518585
T41: 29 | U41: -18.2585 | V41: -686.6085 | W41: 708.74 | X41: 3.873 | Y41: 17.49233386 | Z41: 22.38518585 | AA41: 2238.518585
T42: 30 | U42: -18.2585 | V42: -685.6085 | W42: 707.74 | X42: 3.873 | Y42: 17.49233386 | Z42: 22.38518585 | AA42: 2238.518585
T43: 31 | U43: -18.2585 | V43: -684.6085 | W43: 706.74 | X43: 3.873 | Y43: 17.49233386 | Z43: 22.38518585 | AA43: 2238.518585
T44: 32 | U44: -18.2585 | V44: -683.6085 | W44: 705.74 | X44: 3.873 | Y44: 17.49233386 | Z44: 22.38518585 | AA44: 2238.518585
T45: 33 | U45: -18.2585 | V45: -682.6085 | W45: 704.74 | X45: 3.873 | Y45: 17.49233386 | Z45: 22.38518585 | AA45: 2238.518585
T46: 34 | U46: -18.2585 | V46: -681.6085 | W46: 703.74 | X46: 3.873 | Y46: 17.49233386 | Z46: 22.38518585 | AA46: 2238.518585
T47: 35 | U47: -18.2585 | V47: -680.6085 | W47: 702.74 | X47: 3.873 | Y47: 17.49233386 | Z47: 22.38518585 | AA47: 2238.518585
T48: 36 | U48: -18.2585 | V48: -679.6085 | W48: 701.74 | X48: 3.873 | Y48: 17.49233386 | Z48: 22.38518585 | AA48: 2238.518585
T49: 37 | U49: -18.2585 | V49: -678.6085 | W49: 700.74 | X49: 3.873 | Y49: 17.49233386 | Z49: 22.38518585 | AA49: 2238.518585
T50: 38 | U50: -18.2585 | V50: -677.6085 | W50: 699.74 | X50: 3.873 | Y50: 17.49233386 | Z50: 22.38518585 | AA50: 2238.518585
T51: 39 | U51: -18.2585 | V51: -676.6085 | W51: 698.74 | X51: 3.873 | Y51: 17.49233386 | Z51: 22.38518585 | AA51: 2238.518585
T52: 40 | U52: -18.2585 | V52: -675.6085 | W52: 697.74 | X52: 3.873 | Y52: 17.49233386 | Z52: 22.38518585 | AA52: 2238.518585
T53: 41 | U53: -18.2585 | V53: -674.6085 | W53: 696.74 | X53: 3.873 | Y53: 17.49233386 | Z53: 22.38518585 | AA53: 2238.518585
T54: 42 | U54: -18.2585 | V54: -673.6085 | W54: 695.74 | X54: 3.873 | Y54: 17.49233386 | Z54: 22.38518585 | AA54: 2238.518585
T55: 43 | U55: -18.2585 | V55: -672.6085 | W55: 694.74 | X55: 3.873 | Y55: 17.49233386 | Z55: 22.38518585 | AA55: 2238.518585
T56: 44 | U56: -18.2585 | V56: -671.6085 | W56: 693.74 | X56: 3.873 | Y56: 17.49233386 | Z56: 22.38518585 | AA56: 2238.518585
T57: 45 | U57: -18.2585 | V57: -670.6085 | W57: 692.74 | X57: 3.873 | Y57: 17.49233386 | Z57: 22.38518585 | AA57: 2238.518585
T58: 46 | U58: -18.2585 | V58: -669.6085 | W58: 691.74 | X58: 3.873 | Y58: 17.49233386 | Z58: 22.38518585 | AA58: 2238.518585
T59: 47 | U59: -18.2585 | V59: -668.6085 | W59: 690.74 | X59: 3.873 | Y59: 17.49233386 | Z59: 22.38518585 | AA59: 2238.518585
T60: 48 | U60: -18.2585 | V60: -667.6085 | W60: 689.74 | X60: 3.873 | Y60: 17.49233386 | Z60: 22.38518585 | AA60: 2238.518585
T61: 49 | U61: -18.2585 | V61: -666.6085 | W61: 688.74 | X61: 3.873 | Y61: 17.49233386 | Z61: 22.38518585 | AA61: 2238.518585
T62: 50 | U62: -18.2585 | V62: -665.6085 | W62: 687.74 | X62: 3.873 | Y62: 17.49233386 | Z62: 22.38518585 | AA62: 2238.518585
T63: 51 | U63: -18.2585 | V63: -664.6085 | W63: 686.74 | X63: 3.873 | Y63: 17.49233386 | Z63: 22.38518585 | AA63: 2238.518585
T64: 52 | U64: -18.2585 | V64: -663.6085 | W64: 685.74 | X64: 3.873 | Y64: 17.49233386 | Z64: 22.38518585 | AA64: 2238.518585
T65: 53 | U65: -18.2585 | V65: -662.6085 | W65: 684.74 | X65: 3.873 | Y65: 17.49233386 | Z65: 22.38518585 | AA65: 2238.518585
T66: 54 | U66: -18.2585 | V66: -661.6085 | W66: 683.74 | X66: 3.873 | Y66: 17.49233386 | Z66: 22.38518585 | AA66: 2238.518585
T67: 55 | U67: -18.2585 | V67: -660.6085 | W67: 682.74 | X67: 3.873 | Y67: 17.49233386 | Z67: 22.38518585 | AA67: 2238.518585
T68: 56 | U68: -18.2585 | V68: -659.6085 | W68: 681.74 | X68: 3.873 | Y68: 17.49233386 | Z68: 22.38518585 | AA68: 2238.518585
T69: 57 | U69: -18.2585 | V69: -658.6085 | W69: 680.74 | X69: 3.873 | Y69: 17.49233386 | Z69: 22.38518585 | AA69: 2238.518585
T70: 58 | U70: -18.2585 | V70: -657.6085 | W70: 679.74 | X70: 3.873 | Y70: 17.49233386 | Z70: 22.38518585 | AA70: 2238.518585
T71: 59 | U71: -18.2585 | V71: -656.6085 | W71: 678.74 | X71: 3.873 | Y71: 17.49233386 | Z71: 22.38518585 | AA71: 2238.518585
T72: 60 | U72: -18.2585 | V72: -655.6085 | W72: 677.74 | X72: 3.873 | Y72: 17.49233386 | Z72: 22.38518585 | AA72: 2238.518585
T73: 61 | U73: -18.2585 | V73: -654.6085 | W73: 676.74 | X73: 3.873 | Y73: 17.49233386 | Z73: 22.38518585 | AA73: 2238.518585
T74: 62 | U74: -18.2585 | V74: -653.6085 | W74: 675.74 | X74: 3.873 | Y74: 17.49233386 | Z74: 22.38518585 | AA74: 2238.518585
T75: 63 | U75: -18.2585 | V75: -652.6085 | W75: 674.74 | X75: 3.873 | Y75: 17.49233386 | Z75: 22.38518585 | AA75: 2238.518585
T76: 64 | U76: -18.2585 | V76: -651.6085 | W76: 673.74 | X76: 3.873 | Y76: =$Y$10*EXP($Y$7*$C$6)-$Y$10 -> 17.49233386 | Z76: 22.38518585 | AA76: 2238.518585
T77: 65 | U77: =MAX(0,T77-$U$9)-$U$10-$U$11/100 -> -18.2585 | V77: =$V$10-MAX(0,$V$9-T77)-$V$11/100 -> -650.6085 | W77: =$W$10-T77 -> 672.74 | X77: =SUM(U77:W77) -> 3.873 | Y77: 17.49233386 | Z77: =EXP(-$E$3*$C$6)*SUM(X77:Y77) -> 22.38518585 | AA77: =Z77*100 -> 2238.518585
T78: 66 | U78: -18.2585 | V78: -649.6085 | W78: 671.74 | X78: 3.873 | Y78: 17.49233386 | Z78: 22.38518585 | AA78: 2238.518585
T79: 67 | U79: -18.2585 | V79: -648.6085 | W79: 670.74 | X79: 3.873 | Y79: 17.49233386 | Z79: 22.38518585 | AA79: 2238.518585
T80: 68 | U80: -18.2585 | V80: -647.6085 | W80: 669.74 | X80: 3.873 | Y80: 17.49233386 | Z80: 22.38518585 | AA80: 2238.518585
T81: 69 | U81: -18.2585 | V81: -646.6085 | W81: 668.74 | X81: 3.873 | Y81: 17.49233386 | Z81: 22.38518585 | AA81: 2238.518585
T82: 70 | U82: -18.2585 | V82: -645.6085 | W82: 667.74 | X82: 3.873 | Y82: 17.49233386 | Z82: 22.38518585 | AA82: 2238.518585
T83: 71 | U83: -18.2585 | V83: -644.6085 | W83: 666.74 | X83: 3.873 | Y83: 17.49233386 | Z83: 22.38518585 | AA83: 2238.518585
T84: 72 | U84: -18.2585 | V84: -643.6085 | W84: 665.74 | X84: 3.873 | Y84: 17.49233386 | Z84: 22.38518585 | AA84: 2238.518585
T85: 73 | U85: -18.2585 | V85: -642.6085 | W85: 664.74 | X85: 3.873 | Y85: 17.49233386 | Z85: 22.38518585 | AA85: 2238.518585
T86: 74 | U86: -18.2585 | V86: -641.6085 | W86: 663.74 | X86: 3.873 | Y86: 17.49233386 | Z86: 22.38518585 | AA86: 2238.518585
T87: 75 | U87: -18.2585 | V87: -640.6085 | W87: 662.74 | X87: 3.873 | Y87: 17.49233386 | Z87: 22.38518585 | AA87: 2238.518585
T88: 76 | U88: -18.2585 | V88: -639.6085 | W88: 661.74 | X88: 3.873 | Y88: 17.49233386 | Z88: 22.38518585 | AA88: 2238.518585
T89: 77 | U89: -18.2585 | V89: -638.6085 | W89: 660.74 | X89: 3.873 | Y89: 17.49233386 | Z89: 22.38518585 | AA89: 2238.518585
T90: 78 | U90: -18.2585 | V90: -637.6085 | W90: 659.74 | X90: 3.873 | Y90: 17.49233386 | Z90: 22.38518585 | AA90: 2238.518585
T91: 79 | U91: -18.2585 | V91: -636.6085 | W91: 658.74 | X91: 3.873 | Y91: 17.49233386 | Z91: 22.38518585 | AA91: 2238.518585
T92: 80 | U92: -18.2585 | V92: -635.6085 | W92: 657.74 | X92: 3.873 | Y92: 17.49233386 | Z92: 22.38518585 | AA92: 2238.518585
T93: 81 | U93: -18.2585 | V93: -634.6085 | W93: 656.74 | X93: 3.873 | Y93: 17.49233386 | Z93: 22.38518585 | AA93: 2238.518585
T94: 82 | U94: -18.2585 | V94: -633.6085 | W94: 655.74 | X94: 3.873 | Y94: 17.49233386 | Z94: 22.38518585 | AA94: 2238.518585
T95: 83 | U95: -18.2585 | V95: -632.6085 | W95: 654.74 | X95: 3.873 | Y95: 17.49233386 | Z95: 22.38518585 | AA95: 2238.518585
T96: 84 | U96: -18.2585 | V96: -631.6085 | W96: 653.74 | X96: 3.873 | Y96: 17.49233386 | Z96: 22.38518585 | AA96: 2238.518585
T97: 85 | U97: -18.2585 | V97: -630.6085 | W97: 652.74 | X97: 3.873 | Y97: 17.49233386 | Z97: 22.38518585 | AA97: 2238.518585
T98: 86 | U98: -18.2585 | V98: -629.6085 | W98: 651.74 | X98: 3.873 | Y98: 17.49233386 | Z98: 22.38518585 | AA98: 2238.518585
T99: 87 | U99: -18.2585 | V99: -628.6085 | W99: 650.74 | X99: 3.873 | Y99: 17.49233386 | Z99: 22.38518585 | AA99: 2238.518585
T100: 88 | U100: -18.2585 | V100: -627.6085 | W100: 649.74 | X100: 3.873 | Y100: 17.49233386 | Z100: 22.38518585 | AA100: 2238.518585
T101: 89 | U101: -18.2585 | V101: -626.6085 | W101: 648.74 | X101: 3.873 | Y101: 17.49233386 | Z101: 22.38518585 | AA101: 2238.518585
T102: 90 | U102: -18.2585 | V102: -625.6085 | W102: 647.74 | X102: 3.873 | Y102: 17.49233386 | Z102: 22.38518585 | AA102: 2238.518585
T103: 91 | U103: -18.2585 | V103: -624.6085 | W103: 646.74 | X103: 3.873 | Y103: 17.49233386 | Z103: 22.38518585 | AA103: 2238.518585
T104: 92 | U104: -18.2585 | V104: -623.6085 | W104: 645.74 | X104: 3.873 | Y104: 17.49233386 | Z104: 22.38518585 | AA104: 2238.518585
T105: 93 | U105: -18.2585 | V105: -622.6085 | W105: 644.74 | X105: 3.873 | Y105: 17.49233386 | Z105: 22.38518585 | AA105: 2238.518585
T106: 94 | U106: -18.2585 | V106: -621.6085 | W106: 643.74 | X106: 3.873 | Y106: 17.49233386 | Z106: 22.38518585 | AA106: 2238.518585
T107: 95 | U107: -18.2585 | V107: -620.6085 | W107: 642.74 | X107: 3.873 | Y107: 17.49233386 | Z107: 22.38518585 | AA107: 2238.518585
T108: 96 | U108: -18.2585 | V108: -619.6085 | W108: 641.74 | X108: 3.873 | Y108: 17.49233386 | Z108: 22.38518585 | AA108: 2238.518585
T109: 97 | U109: -18.2585 | V109: -618.6085 | W109: 640.74 | X109: 3.873 | Y109: 17.49233386 | Z109: 22.38518585 | AA109: 2238.518585
T110: 98 | U110: -18.2585 | V110: -617.6085 | W110: 639.74 | X110: 3.873 | Y110: 17.49233386 | Z110: 22.38518585 | AA110: 2238.518585
T111: 99 | U111: -18.2585 | V111: -616.6085 | W111: 638.74 | X111: 3.873 | Y111: 17.49233386 | Z111: 22.38518585 | AA111: 2238.518585
T112: 100 | U112: -18.2585 | V112: -615.6085 | W112: 637.74 | X112: 3.873 | Y112: 17.49233386 | Z112: 22.38518585 | AA112: 2238.518585
T113: 101 | U113: -18.2585 | V113: -614.6085 | W113: 636.74 | X113: 3.873 | Y113: 17.49233386 | Z113: 22.38518585 | AA113: 2238.518585
T114: 102 | U114: -18.2585 | V114: -613.6085 | W114: 635.74 | X114: 3.873 | Y114: 17.49233386 | Z114: 22.38518585 | AA114: 2238.518585
T115: 103 | U115: -18.2585 | V115: -612.6085 | W115: 634.74 | X115: 3.873 | Y115: 17.49233386 | Z115: 22.38518585 | AA115: 2238.518585
T116: 104 | U116: -18.2585 | V116: -611.6085 | W116: 633.74 | X116: 3.873 | Y116: 17.49233386 | Z116: 22.38518585 | AA116: 2238.518585
T117: 105 | U117: -18.2585 | V117: -610.6085 | W117: 632.74 | X117: 3.873 | Y117: 17.49233386 | Z117: 22.38518585 | AA117: 2238.518585
T118: 106 | U118: -18.2585 | V118: -609.6085 | W118: 631.74 | X118: 3.873 | Y118: 17.49233386 | Z118: 22.38518585 | AA118: 2238.518585
T119: 107 | U119: -18.2585 | V119: -608.6085 | W119: 630.74 | X119: 3.873 | Y119: 17.49233386 | Z119: 22.38518585 | AA119: 2238.518585
T120: 108 | U120: -18.2585 | V120: -607.6085 | W120: 629.74 | X120: 3.873 | Y120: 17.49233386 | Z120: 22.38518585 | AA120: 2238.518585
T121: 109 | U121: -18.2585 | V121: -606.6085 | W121: 628.74 | X121: 3.873 | Y121: 17.49233386 | Z121: 22.38518585 | AA121: 2238.518585
T122: 110 | U122: -18.2585 | V122: -605.6085 | W122: 627.74 | X122: 3.873 | Y122: 17.49233386 | Z122: 22.38518585 | AA122: 2238.518585
T123: 111 | U123: -18.2585 | V123: -604.6085 | W123: 626.74 | X123: 3.873 | Y123: 17.49233386 | Z123: 22.38518585 | AA123: 2238.518585
T124: 112 | U124: -18.2585 | V124: -603.6085 | W124: 625.74 | X124: 3.873 | Y124: 17.49233386 | Z124: 22.38518585 | AA124: 2238.518585
T125: 113 | U125: -18.2585 | V125: -602.6085 | W125: 624.74 | X125: 3.873 | Y125: 17.49233386 | Z125: 22.38518585 | AA125: 2238.518585
T126: 114 | U126: -18.2585 | V126: -601.6085 | W126: 623.74 | X126: 3.873 | Y126: 17.49233386 | Z126: 22.38518585 | AA126: 2238.518585
T127: 115 | U127: -18.2585 | V127: -600.6085 | W127: 622.74 | X127: 3.873 | Y127: 17.49233386 | Z127: 22.38518585 | AA127: 2238.518585
T128: 116 | U128: -18.2585 | V128: -599.6085 | W128: 621.74 | X128: 3.873 | Y128: 17.49233386 | Z128: 22.38518585 | AA128: 2238.518585
T129: 117 | U129: -18.2585 | V129: -598.6085 | W129: 620.74 | X129: 3.873 | Y129: 17.49233386 | Z129: 22.38518585 | AA129: 2238.518585
T130: 118 | U130: -18.2585 | V130: -597.6085 | W130: 619.74 | X130: 3.873 | Y130: 17.49233386 | Z130: 22.38518585 | AA130: 2238.518585
T131: 119 | U131: -18.2585 | V131: -596.6085 | W131: 618.74 | X131: 3.873 | Y131: 17.49233386 | Z131: 22.38518585 | AA131: 2238.518585
T132: 120 | U132: -18.2585 | V132: -595.6085 | W132: 617.74 | X132: 3.873 | Y132: 17.49233386 | Z132: 22.38518585 | AA132: 2238.518585
T133: 121 | U133: -18.2585 | V133: -594.6085 | W133: 616.74 | X133: 3.873 | Y133: 17.49233386 | Z133: 22.38518585 | AA133: 2238.518585
T134: 122 | U134: -18.2585 | V134: -593.6085 | W134: 615.74 | X134: 3.873 | Y134: 17.49233386 | Z134: 22.38518585 | AA134: 2238.518585
T135: 123 | U135: -18.2585 | V135: -592.6085 | W135: 614.74 | X135: 3.873 | Y135: 17.49233386 | Z135: 22.38518585 | AA135: 2238.518585
T136: 124 | U136: -18.2585 | V136: -591.6085 | W136: 613.74 | X136: 3.873 | Y136: 17.49233386 | Z136: 22.38518585 | AA136: 2238.518585
T137: 125 | U137: -18.2585 | V137: -590.6085 | W137: 612.74 | X137: 3.873 | Y137: 17.49233386 | Z137: 22.38518585 | AA137: 2238.518585
T138: 126 | U138: -18.2585 | V138: -589.6085 | W138: 611.74 | X138: 3.873 | Y138: 17.49233386 | Z138: 22.38518585 | AA138: 2238.518585
T139: 127 | U139: -18.2585 | V139: -588.6085 | W139: 610.74 | X139: 3.873 | Y139: 17.49233386 | Z139: 22.38518585 | AA139: 2238.518585
T140: 128 | U140: -18.2585 | V140: -587.6085 | W140: 609.74 | X140: 3.873 | Y140: =$Y$10*EXP($Y$7*$C$6)-$Y$10 -> 17.49233386 | Z140: 22.38518585 | AA140: 2238.518585
T141: 129 | U141: =MAX(0,T141-$U$9)-$U$10-$U$11/100 -> -18.2585 | V141: =$V$10-MAX(0,$V$9-T141)-$V$11/100 -> -586.6085 | W141: =$W$10-T141 -> 608.74 | X141: =SUM(U141:W141) -> 3.873 | Y141: 17.49233386 | Z141: =EXP(-$E$3*$C$6)*SUM(X141:Y141) -> 22.38518585 | AA141: =Z141*100 -> 2238.518585
T142: 130 | U142: -18.2585 | V142: -585.6085 | W142: 607.74 | X142: 3.873 | Y142: 17.49233386 | Z142: 22.38518585 | AA142: 2238.518585
T143: 131 | U143: -18.2585 | V143: -584.6085 | W143: 606.74 | X143: 3.873 | Y143: 17.49233386 | Z143: 22.38518585 | AA143: 2238.518585
T144: 132 | U144: -18.2585 | V144: -583.6085 | W144: 605.74 | X144: 3.873 | Y144: 17.49233386 | Z144: 22.38518585 | AA144: 2238.518585
T145: 133 | U145: -18.2585 | V145: -582.6085 | W145: 604.74 | X145: 3.873 | Y145: 17.49233386 | Z145: 22.38518585 | AA145: 2238.518585
T146: 134 | U146: -18.2585 | V146: -581.6085 | W146: 603.74 | X146: 3.873 | Y146: 17.49233386 | Z146: 22.38518585 | AA146: 2238.518585
T147: 135 | U147: -18.2585 | V147: -580.6085 | W147: 602.74 | X147: 3.873 | Y147: 17.49233386 | Z147: 22.38518585 | AA147: 2238.518585
T148: 136 | U148: -18.2585 | V148: -579.6085 | W148: 601.74 | X148: 3.873 | Y148: 17.49233386 | Z148: 22.38518585 | AA148: 2238.518585
T149: 137 | U149: -18.2585 | V149: -578.6085 | W149: 600.74 | X149: 3.873 | Y149: 17.49233386 | Z149: 22.38518585 | AA149: 2238.518585
T150: 138 | U150: -18.2585 | V150: -577.6085 | W150: 599.74 | X150: 3.873 | Y150: 17.49233386 | Z150: 22.38518585 | AA150: 2238.518585
T151: 139 | U151: -18.2585 | V151: -576.6085 | W151: 598.74 | X151: 3.873 | Y151: 17.49233386 | Z151: 22.38518585 | AA151: 2238.518585
T152: 140 | U152: -18.2585 | V152: -575.6085 | W152: 597.74 | X152: 3.873 | Y152: 17.49233386 | Z152: 22.38518585 | AA152: 2238.518585
T153: 141 | U153: -18.2585 | V153: -574.6085 | W153: 596.74 | X153: 3.873 | Y153: 17.49233386 | Z153: 22.38518585 | AA153: 2238.518585
T154: 142 | U154: -18.2585 | V154: -573.6085 | W154: 595.74 | X154: 3.873 | Y154: 17.49233386 | Z154: 22.38518585 | AA154: 2238.518585
T155: 143 | U155: -18.2585 | V155: -572.6085 | W155: 594.74 | X155: 3.873 | Y155: 17.49233386 | Z155: 22.38518585 | AA155: 2238.518585
T156: 144 | U156: -18.2585 | V156: -571.6085 | W156: 593.74 | X156: 3.873 | Y156: 17.49233386 | Z156: 22.38518585 | AA156: 2238.518585
T157: 145 | U157: -18.2585 | V157: -570.6085 | W157: 592.74 | X157: 3.873 | Y157: 17.49233386 | Z157: 22.38518585 | AA157: 2238.518585
T158: 146 | U158: -18.2585 | V158: -569.6085 | W158: 591.74 | X158: 3.873 | Y158: 17.49233386 | Z158: 22.38518585 | AA158: 2238.518585
T159: 147 | U159: -18.2585 | V159: -568.6085 | W159: 590.74 | X159: 3.873 | Y159: 17.49233386 | Z159: 22.38518585 | AA159: 2238.518585
T160: 148 | U160: -18.2585 | V160: -567.6085 | W160: 589.74 | X160: 3.873 | Y160: 17.49233386 | Z160: 22.38518585 | AA160: 2238.518585
T161: 149 | U161: -18.2585 | V161: -566.6085 | W161: 588.74 | X161: 3.873 | Y161: 17.49233386 | Z161: 22.38518585 | AA161: 2238.518585
T162: 150 | U162: -18.2585 | V162: -565.6085 | W162: 587.74 | X162: 3.873 | Y162: 17.49233386 | Z162: 22.38518585 | AA162: 2238.518585
T163: 151 | U163: -18.2585 | V163: -564.6085 | W163: 586.74 | X163: 3.873 | Y163: 17.49233386 | Z163: 22.38518585 | AA163: 2238.518585
T164: 152 | U164: -18.2585 | V164: -563.6085 | W164: 585.74 | X164: 3.873 | Y164: 17.49233386 | Z164: 22.38518585 | AA164: 2238.518585
T165: 153 | U165: -18.2585 | V165: -562.6085 | W165: 584.74 | X165: 3.873 | Y165: 17.49233386 | Z165: 22.38518585 | AA165: 2238.518585
T166: 154 | U166: -18.2585 | V166: -561.6085 | W166: 583.74 | X166: 3.873 | Y166: 17.49233386 | Z166: 22.38518585 | AA166: 2238.518585
T167: 155 | U167: -18.2585 | V167: -560.6085 | W167: 582.74 | X167: 3.873 | Y167: 17.49233386 | Z167: 22.38518585 | AA167: 2238.518585
T168: 156 | U168: -18.2585 | V168: -559.6085 | W168: 581.74 | X168: 3.873 | Y168: 17.49233386 | Z168: 22.38518585 | AA168: 2238.518585
T169: 157 | U169: -18.2585 | V169: -558.6085 | W169: 580.74 | X169: 3.873 | Y169: 17.49233386 | Z169: 22.38518585 | AA169: 2238.518585
T170: 158 | U170: -18.2585 | V170: -557.6085 | W170: 579.74 | X170: 3.873 | Y170: 17.49233386 | Z170: 22.38518585 | AA170: 2238.518585
T171: 159 | U171: -18.2585 | V171: -556.6085 | W171: 578.74 | X171: 3.873 | Y171: 17.49233386 | Z171: 22.38518585 | AA171: 2238.518585
T172: 160 | U172: -18.2585 | V172: -555.6085 | W172: 577.74 | X172: 3.873 | Y172: 17.49233386 | Z172: 22.38518585 | AA172: 2238.518585
T173: 161 | U173: -18.2585 | V173: -554.6085 | W173: 576.74 | X173: 3.873 | Y173: 17.49233386 | Z173: 22.38518585 | AA173: 2238.518585
T174: 162 | U174: -18.2585 | V174: -553.6085 | W174: 575.74 | X174: 3.873 | Y174: 17.49233386 | Z174: 22.38518585 | AA174: 2238.518585
T175: 163 | U175: -18.2585 | V175: -552.6085 | W175: 574.74 | X175: 3.873 | Y175: 17.49233386 | Z175: 22.38518585 | AA175: 2238.518585
T176: 164 | U176: -18.2585 | V176: -551.6085 | W176: 573.74 | X176: 3.873 | Y176: 17.49233386 | Z176: 22.38518585 | AA176: 2238.518585
T177: 165 | U177: -18.2585 | V177: -550.6085 | W177: 572.74 | X177: 3.873 | Y177: 17.49233386 | Z177: 22.38518585 | AA177: 2238.518585
T178: 166 | U178: -18.2585 | V178: -549.6085 | W178: 571.74 | X178: 3.873 | Y178: 17.49233386 | Z178: 22.38518585 | AA178: 2238.518585
T179: 167 | U179: -18.2585 | V179: -548.6085 | W179: 570.74 | X179: 3.873 | Y179: 17.49233386 | Z179: 22.38518585 | AA179: 2238.518585
T180: 168 | U180: -18.2585 | V180: -547.6085 | W180: 569.74 | X180: 3.873 | Y180: 17.49233386 | Z180: 22.38518585 | AA180: 2238.518585
T181: 169 | U181: -18.2585 | V181: -546.6085 | W181: 568.74 | X181: 3.873 | Y181: 17.49233386 | Z181: 22.38518585 | AA181: 2238.518585
T182: 170 | U182: -18.2585 | V182: -545.6085 | W182: 567.74 | X182: 3.873 | Y182: 17.49233386 | Z182: 22.38518585 | AA182: 2238.518585
T183: 171 | U183: -18.2585 | V183: -544.6085 | W183: 566.74 | X183: 3.873 | Y183: 17.49233386 | Z183: 22.38518585 | AA183: 2238.518585
T184: 172 | U184: -18.2585 | V184: -543.6085 | W184: 565.74 | X184: 3.873 | Y184: 17.49233386 | Z184: 22.38518585 | AA184: 2238.518585
T185: 173 | U185: -18.2585 | V185: -542.6085 | W185: 564.74 | X185: 3.873 | Y185: 17.49233386 | Z185: 22.38518585 | AA185: 2238.518585
T186: 174 | U186: -18.2585 | V186: -541.6085 | W186: 563.74 | X186: 3.873 | Y186: 17.49233386 | Z186: 22.38518585 | AA186: 2238.518585
T187: 175 | U187: -18.2585 | V187: -540.6085 | W187: 562.74 | X187: 3.873 | Y187: 17.49233386 | Z187: 22.38518585 | AA187: 2238.518585
T188: 176 | U188: -18.2585 | V188: -539.6085 | W188: 561.74 | X188: 3.873 | Y188: 17.49233386 | Z188: 22.38518585 | AA188: 2238.518585
T189: 177 | U189: -18.2585 | V189: -538.6085 | W189: 560.74 | X189: 3.873 | Y189: 17.49233386 | Z189: 22.38518585 | AA189: 2238.518585
T190: 178 | U190: -18.2585 | V190: -537.6085 | W190: 559.74 | X190: 3.873 | Y190: 17.49233386 | Z190: 22.38518585 | AA190: 2238.518585
T191: 179 | U191: -18.2585 | V191: -536.6085 | W191: 558.74 | X191: 3.873 | Y191: 17.49233386 | Z191: 22.38518585 | AA191: 2238.518585
T192: 180 | U192: -18.2585 | V192: -535.6085 | W192: 557.74 | X192: 3.873 | Y192: 17.49233386 | Z192: 22.38518585 | AA192: 2238.518585
T193: 181 | U193: -18.2585 | V193: -534.6085 | W193: 556.74 | X193: 3.873 | Y193: 17.49233386 | Z193: 22.38518585 | AA193: 2238.518585
T194: 182 | U194: -18.2585 | V194: -533.6085 | W194: 555.74 | X194: 3.873 | Y194: 17.49233386 | Z194: 22.38518585 | AA194: 2238.518585
T195: 183 | U195: -18.2585 | V195: -532.6085 | W195: 554.74 | X195: 3.873 | Y195: 17.49233386 | Z195: 22.38518585 | AA195: 2238.518585
T196: 184 | U196: -18.2585 | V196: -531.6085 | W196: 553.74 | X196: 3.873 | Y196: 17.49233386 | Z196: 22.38518585 | AA196: 2238.518585
T197: 185 | U197: -18.2585 | V197: -530.6085 | W197: 552.74 | X197: 3.873 | Y197: 17.49233386 | Z197: 22.38518585 | AA197: 2238.518585
T198: 186 | U198: -18.2585 | V198: -529.6085 | W198: 551.74 | X198: 3.873 | Y198: 17.49233386 | Z198: 22.38518585 | AA198: 2238.518585
T199: 187 | U199: -18.2585 | V199: -528.6085 | W199: 550.74 | X199: 3.873 | Y199: 17.49233386 | Z199: 22.38518585 | AA199: 2238.518585
T200: 188 | U200: -18.2585 | V200: -527.6085 | W200: 549.74 | X200: 3.873 | Y200: 17.49233386 | Z200: 22.38518585 | AA200: 2238.518585
T201: 189 | U201: -18.2585 | V201: -526.6085 | W201: 548.74 | X201: 3.873 | Y201: 17.49233386 | Z201: 22.38518585 | AA201: 2238.518585
T202: 190 | U202: -18.2585 | V202: -525.6085 | W202: 547.74 | X202: 3.873 | Y202: 17.49233386 | Z202: 22.38518585 | AA202: 2238.518585
... 1110 more rows

Sheet Data
C2: Paste Below
S3: Instructions: Copy DeGiro quotes from "CALL" to the last 'sell button'. Paste in cell C3.
S4: TRUE
U7: =author() -> Wessel van den Brink
U8: 8
U9: =_xlfn.IFS(print=",",",",AND(print<>",",ISERR(VALUE(print))=TRUE),"",ISERR(VALUE(print))=FALSE,print) -> 0
U10: 0
U11: =TimeSpreadBool -> FALSE

Sheet Trader
B3: Ticker | D3: RiskFree | E3: 0.0325 | G3: 0.06 | H3: Historical volatility σ | J3: TimeSpread | K3: =FALSE -> FALSE | L3: =TRUE -> TRUE | M3: Layout | T3: Contract | V3: Plotting | X3: Execute | AC3: Strategy | AE3: Plotting | AG3: Positions | AH3: Statistics | AJ3: Execute
B4: Price | C4: =_FV(Ticker,"Price",TRUE)*10 -> 893.1 | D4: Dividends | E4: 0 | H4: T_yr = 252 | I4: =histvol(C3,MAX(7,MIN(1000,C6*days_yr)),FALSE) -> 0.1252960945 | J4: T_1 | T4: Type | U4: Call | V4: Range% S_0 | W4: 0.25 | AC4: Strategy (F9!) | AD4: Strangle | AE4: Range% U/L | AF4: 0.15 | AH4: Max. Loss
B5: Maturity | C5: 2025-09-19T17:30:00 | D5: Style | E5: European | H5: T_yr = 365,25 | I5: =histvol(C3,MAX(7,MIN(1000,C6*days_yr)),TRUE) -> 0.150845506 | J5: T_2 | T5: Style | U5: European | V5: Plot | W5: Gamma | AC5: Move | AD5: Long | AE5: step | AF5: 1 | AH5: Break Even
B6: TimetoT | C6: =IF(C5="","",(C5-NOW())/days_yr) -> 0.7885901133 | D6: stepsbinomial | E6: 25 | H6: Mean | I6: =AVERAGE(I4:I5) -> 0.1380708003 | J6: index_new | T6: Strike | U6: 900 | V6: Statistics | AC6: Style | AD6: European | AE6: Greeks T/F | AF6: TRUE | AH6: Max. Profit
T7: Move | U7: Long | V7: BreakEven | W7: =IFERROR(BreakEven(U4,U6,U8),"") ->  | AC7: =IF(AD4="Straddle","ATM (blank)",IF($AD$4="Strangle","|Put Delta|",IF(RIGHT($AD$4,10)="TimeSpread","Long |Delta|","High |Delta|"))) -> |Put Delta| | AD7: 0.4 | AE7: Plot Greek: | AF7: Gamma
B8: Call | J8: Strike | K8: Put | T8: Price (Press F9) | U8: =IFERROR(_xlfn.IFS(AND(U4="Put",U7="Short"),INDEX(K10:K1048576,MATCH($U$6,$J$10:$J$1048576,0)),AND(U4="Put",U7="Long"),INDEX(L10:L1048576,MATCH($U$6,$J$10:$J$1048576,0)),AND(U4="Call",U7="Short"),INDEX(I10:I1048576,MATCH($U$6,$J$10:$J$1048576,0)),AND(U4="Call",U7="Long"),INDEX(H10:H1048576,MATCH($U$6,$J$10:$J$1048576,0))),"") ->  | V8: =IF(U7="Long","IV Ask Price","IV Bid Price") -> IV Ask Price | W8: =IF(U8="","",IFERROR(AmericanVolatility($C$4,$U$6,$C$6,$E$3,$E$4,$U$8,25,$U$4,$U$5),"")) ->  | AA8: =COUNTA(AA10:AA1048576) -> 0 | AC8: =IF(AD4="Straddle","ATM (blank)",IF($AD$4="Strangle","Call Delta",IF(RIGHT($AD$4,10)="TimeSpread","Short |Delta|","Low |Delta|"))) -> Call Delta | AD8: 0.4 | AE8: =IF(RIGHT(strategy,10)="TimeSpread",IF(AD5="Short","(T_2-t)/T_2","(T_1-t)/T_1"),"(T-t)/T") -> (T-t)/T | AF8: 1
B9: Rho | C9: Theta | D9: Vega | E9: Gamma | F9: Delta | G9: IVCall | H9: Ask | I9: Bid | K9: Bid | L9: Ask | M9: IVPut | N9: Delta | O9: Gamma | P9: Vega | Q9: Theta | R9: Rho | T9: StockPrice | U9: Delta | V9: Gamma | W9: Vega | X9: Theta | Y9: Rho | Z9: PayOffatT | AA9: TimeDecay | AC9: StockPrice | AD9: Delta | AE9: Gamma | AF9: Vega | AG9: Theta | AH9: Rho | AI9: =IF(RIGHT($AD$4,10)="TimeSpread","Theoretical PayOff","PayOffatT") -> PayOffatT

Sheet Advanced (hidden)
B3: Ticker | D3: RiskFree | E3: 0.0005 | G3: 0.94 | U3: Leg1 | V3: Leg2 | W3: Leg3 | X3: Leg4 | Y3: Leg5
B4: Price | C4: =_FV(C3,"Price")*10 -> 896.9 | D4: Dividends | E4: 0 | Q4: OptionVBA | T4: Type | Z4: =COUNTA(U4:Y4) -> 0
B5: Maturity | C5: 2022-02-18T17:30:00 | D5: Style | E5: European | T5: Strike (or: Stock Price) | Z5: =COUNTA(T10:T1048576) -> 0
B6: TimetoT | C6: =IF(C5="","",(C5-NOW())/days_yr) -> -2.795254915 | D6: stepsbinomial | E6: 25 | T6: Move (finds price)
T7: Price (F9) if Stock then Empty | U7: =IFERROR(_xlfn.IFS(AND(U4="Put",U6="Short"),INDEX($K$10:$K$1048576,MATCH(U$5,J$10:J$1048576,0)),AND(U4="Put",U6="Long"),INDEX($L$10:$L$1048576,MATCH($U$5,$J$10:$J$1048576,0)),AND(U4="Call",U6="Short"),INDEX($I$10:$I$1048576,MATCH($U$5,$J$10:$J$1048576,0)),AND(U4="Call",U6="Long"),INDEX($H$10:$H$1048576,MATCH($U$5,$J$10:$J$1048576,0))),"") ->  | V7: =IFERROR(_xlfn.IFS(AND(V4="Put",V6="Short"),INDEX($K$10:$K$1048576,MATCH(V$5,J$10:J$1048576,0)),AND(V4="Put",V6="Long"),INDEX($L$10:$L$1048576,MATCH($V$5,$J$10:$J$1048576,0)),AND(V4="Call",V6="Short"),INDEX($I$10:$I$1048576,MATCH($V$5,$J$10:$J$1048576,0)),AND(V4="Call",V6="Long"),INDEX($H$10:$H$1048576,MATCH($V$5,$J$10:$J$1048576,0))),"") ->  | W7: =IFERROR(_xlfn.IFS(AND(W4="Put",W6="Short"),INDEX($K$10:$K$1048576,MATCH(W$5,J$10:J$1048576,0)),AND(W4="Put",W6="Long"),INDEX($L$10:$L$1048576,MATCH($W$5,$J$10:$J$1048576,0)),AND(W4="Call",W6="Short"),INDEX($I$10:$I$1048576,MATCH($W$5,$J$10:$J$1048576,0)),AND(W4="Call",W6="Long"),INDEX($H$10:$H$1048576,MATCH($W$5,$J$10:$J$1048576,0))),"") ->  | X7: =IFERROR(_xlfn.IFS(AND(X4="Put",X6="Short"),INDEX($K$10:$K$1048576,MATCH(X$5,J$10:J$1048576,0)),AND(X4="Put",X6="Long"),INDEX($L$10:$L$1048576,MATCH($X$5,$J$10:$J$1048576,0)),AND(X4="Call",X6="Short"),INDEX($I$10:$I$1048576,MATCH($X$5,$J$10:$J$1048576,0)),AND(X4="Call",X6="Long"),INDEX($H$10:$H$1048576,MATCH($X$5,$J$10:$J$1048576,0))),"") ->  | Y7: =IFERROR(_xlfn.IFS(AND(Y4="Put",Y6="Short"),INDEX($K$10:$K$1048576,MATCH(Y$5,J$10:J$1048576,0)),AND(Y4="Put",Y6="Long"),INDEX($L$10:$L$1048576,MATCH($Y$5,$J$10:$J$1048576,0)),AND(Y4="Call",Y6="Short"),INDEX($I$10:$I$1048576,MATCH($Y$5,$J$10:$J$1048576,0)),AND(Y4="Call",Y6="Long"),INDEX($H$10:$H$1048576,MATCH($Y$5,$J$10:$J$1048576,0))),"") -> 
B8: Call | J8: Strike | K8: Put | T8: Amount* (minus if short)
B9: Rho(+1%rf) | C9: Theta | D9: Vega(iv+1%) | E9: Gamma | F9: Delta | G9: IVCall | H9: Ask | I9: Bid | K9: Bid | L9: Ask | M9: IVPut | N9: Delta | O9: Gamma | P9: Vega | Q9: Theta | R9: Rho | T9: StockPrice | U9: PayOff Leg1 | V9: PayOff Leg2 | W9: PayOff Leg3 | X9: PayOff Leg4 | Y9: PayOff Leg5 | Z9: Aggregate
Z10: =IF(T10<>"",SUM(U10:Y10),"") -> 
Z11: =IF(T11<>"",SUM(U11:Y11),"") -> 
Z75: =IF(T75<>"",SUM(U75:Y75),"") -> 
